[Event "Rapid Tournament (RAP)"]
[Site "Biel, Switzerland"]
[Date "2026.07.12"]
[Round "5.30"]
[White "Huang, Hsuan-Chen"]
[Black "Frey, Fabian"]
[Result "0-1"]
[TimeControl "15 + 5"]
[WhiteTitle "-"]
[BlackTitle "-"]
[WhiteFideId "16303121"]
[BlackFideId "1336487"]
[WhiteElo "1648"]
[BlackElo "2207"]

1. d4 {[%clk 00:15:07]} {[%emt 00:00:03]} d5 {[%clk 00:15:09]} {[%emt
00:00:02]} 2. Nf3 {[%clk 00:15:10]} {[%emt 00:00:02]} e6 {[%clk 00:15:08]}
{[%emt 00:00:06]} 3. e3 {[%clk 00:15:10]} {[%emt 00:00:05]} c5 {[%clk
00:15:07]} {[%emt 00:00:06]} 4. c3 {[%clk 00:15:13]} {[%emt 00:00:02]} Nc6
{[%clk 00:15:07]} {[%emt 00:00:04]} 5. Bd3 {[%clk 00:15:16]} {[%emt 00:00:02]}
Nf6 {[%clk 00:15:08]} {[%emt 00:00:05]} 6. Nbd2 {[%clk 00:15:18]} {[%emt
00:00:03]} a5 {[%clk 00:15:07]} {[%emt 00:00:06]} 7. a4 {[%clk 00:14:58]}
{[%emt 00:00:25]} Bd6 {[%clk 00:15:06]} {[%emt 00:00:05]} 8. O-O {[%clk
00:15:01]} {[%emt 00:00:02]} O-O {[%clk 00:15:07]} {[%emt 00:00:04]} 9. dxc5
{[%clk 00:15:03]} {[%emt 00:00:03]} Bxc5 {[%clk 00:15:10]} {[%emt 00:00:01]} 10.
e4 {[%clk 00:15:07]} {[%emt 00:00:02]} dxe4 {[%clk 00:15:05]} {[%emt 00:00:10]}
11. Nxe4 {[%clk 00:15:09]} {[%emt 00:00:02]} Nxe4 {[%clk 00:15:06]} {[%emt
00:00:05]} 12. Bxe4 {[%clk 00:15:13]} {[%emt 00:00:01]} h6 {[%clk 00:15:03]}
{[%emt 00:00:08]} 13. Qe2 {[%clk 00:14:53]} {[%emt 00:00:25]} Qc7 {[%clk
00:15:00]} {[%emt 00:00:08]} 14. Rd1 {[%clk 00:13:09]} {[%emt 00:01:50]} Bd7
{[%clk 00:13:38]} {[%emt 00:01:26]} 15. Bc2 {[%clk 00:13:10]} {[%emt 00:00:04]}
Rad8 {[%clk 00:13:37]} {[%emt 00:00:06]} 16. Qe4 {[%clk 00:11:06]} {[%emt
00:02:09]} f5 {[%clk 00:13:28]} {[%emt 00:00:14]} 17. Qc4 {[%clk 00:11:06]}
{[%emt 00:00:05]} Bd6 {[%clk 00:12:39]} {[%emt 00:00:53]} 18. Be3 {[%clk
00:10:09]} {[%emt 00:01:02]} Ne5 {[%clk 00:11:37]} {[%emt 00:01:07]} 19. Nxe5
{[%clk 00:09:00]} {[%emt 00:01:15]} Bxe5 {[%clk 00:11:39]} {[%emt 00:00:03]} 20.
Qh4 {[%clk 00:06:31]} {[%emt 00:02:34]} Bf6 {[%clk 00:11:18]} {[%emt 00:00:26]}
21. Qg3 {[%clk 00:05:51]} {[%emt 00:00:45]} Be5 {[%clk 00:10:58]} {[%emt
00:00:24]} 22. f4 {[%clk 00:05:42]} {[%emt 00:00:15]} Bd6 {[%clk 00:10:21]}
{[%emt 00:00:42]} 23. Qf2 {[%clk 00:05:34]} {[%emt 00:00:13]} Qc6 {[%clk
00:07:15]} {[%emt 00:03:12]} 24. Bd3 {[%clk 00:05:15]} {[%emt 00:00:23]} Qc8
{[%clk 00:06:48]} {[%emt 00:00:32]} 25. Bb6 {[%clk 00:04:47]} {[%emt 00:00:34]}
Bc7 {[%clk 00:06:45]} {[%emt 00:00:07]} 26. Bc5 {[%clk 00:04:14]} {[%emt
00:00:38]} Rfe8 {[%clk 00:05:44]} {[%emt 00:01:06]} 27. Be2 {[%clk 00:02:35]}
{[%emt 00:01:44]} Bxf4 {[%clk 00:05:15]} {[%emt 00:00:34]} 28. Bh5 {[%clk
00:02:37]} {[%emt 00:00:03]} e5 {[%clk 00:03:27]} {[%emt 00:01:54]} 29. Bxe8
{[%clk 00:02:33]} {[%emt 00:00:09]} Rxe8 {[%clk 00:03:30]} {[%emt 00:00:02]} 30.
Be3 {[%clk 00:02:24]} {[%emt 00:00:14]} Bxe3 {[%clk 00:03:26]} {[%emt
00:00:10]} 31. Qxe3 {[%clk 00:02:28]} f4 {[%clk 00:03:25]} {[%emt 00:00:06]} 32.
Qb6 {[%clk 00:01:55]} {[%emt 00:00:37]} Bc6 {[%clk 00:03:17]} {[%emt 00:00:13]}
33. Rd2 {[%clk 00:01:18]} {[%emt 00:00:42]} e4 {[%clk 00:03:16]} {[%emt
00:00:06]} 34. Rad1 {[%clk 00:01:03]} {[%emt 00:00:20]} Kh7 {[%clk 00:03:02]}
{[%emt 00:00:20]} 35. Rd8 {[%clk 00:00:59]} {[%emt 00:00:08]} Qg4 {[%clk
00:02:55]} {[%emt 00:00:12]} 36. h3 {[%clk 00:01:03]} {[%emt 00:00:01]} Qh5
{[%clk 00:02:08]} {[%emt 00:00:52]} 37. Qf2 {[%clk 00:00:34]} {[%emt 00:00:34]}
e3 {[%clk 00:01:32]} {[%emt 00:00:41]} 38. Qe1 {[%clk 00:00:28]} {[%emt
00:00:11]} Qg5 {[%clk 00:01:10]} {[%emt 00:00:27]} 39. Qe2 {[%clk 00:00:22]}
{[%emt 00:00:11]} Rxd8 {[%clk 00:01:12]} {[%emt 00:00:03]} 0-1

[Event "Rapid Tournament (RAP)"]
[Site "Biel, Switzerland"]
[Date "2026.07.12"]
[Round "5.31"]
[White "Rohde, Bernhard"]
[Black "Fernandes Barbosa Dos Santos, Gabriel"]
[Result "0-1"]
[TimeControl "15 + 5"]
[WhiteTitle "-"]
[BlackTitle "-"]
[WhiteFideId "1323016"]
[BlackFideId "1354388"]
[WhiteElo "1834"]
[BlackElo "2199"]

1. e4 {[%clk 00:15:09]} {[%emt 00:00:02]} c5 {[%clk 00:15:03]} {[%emt
00:00:07]} 2. d4 {[%clk 00:15:12]} {[%emt 00:00:02]} cxd4 {[%clk 00:15:06]}
{[%emt 00:00:02]} 3. Nf3 {[%clk 00:15:16]} e5 {[%clk 00:15:07]} {[%emt
00:00:04]} 4. c3 {[%clk 00:14:59]} {[%emt 00:00:23]} dxc3 {[%clk 00:15:02]}
{[%emt 00:00:09]} 5. Bc4 {[%clk 00:15:00]} {[%emt 00:00:04]} Nc6 {[%clk
00:14:25]} {[%emt 00:00:42]} 6. Nxc3 {[%clk 00:14:39]} {[%emt 00:00:27]} d6
{[%clk 00:13:15]} {[%emt 00:01:15]} 7. O-O {[%clk 00:13:58]} {[%emt 00:00:45]}
Be7 {[%clk 00:13:15]} {[%emt 00:00:05]} 8. Qb3 {[%clk 00:11:42]} {[%emt
00:02:22]} Na5 {[%clk 00:12:05]} {[%emt 00:01:14]} 9. Bb5+ {[%clk 00:08:23]}
{[%emt 00:03:24]} Bd7 {[%clk 00:11:52]} {[%emt 00:00:19]} 10. Qa4 {[%clk
00:08:04]} {[%emt 00:00:23]} Nc6 {[%clk 00:11:42]} {[%emt 00:00:14]} 11. Nd5
{[%clk 00:07:18]} {[%emt 00:00:52]} Nf6 {[%clk 00:11:28]} {[%emt 00:00:19]} 12.
Be3 {[%clk 00:06:42]} {[%emt 00:00:41]} a6 {[%clk 00:11:00]} {[%emt 00:00:33]}
13. Bd3 {[%clk 00:06:11]} {[%emt 00:00:36]} Nxd5 {[%clk 00:10:48]} {[%emt
00:00:17]} 14. exd5 {[%clk 00:06:05]} {[%emt 00:00:10]} Nd4 {[%clk 00:10:51]}
{[%emt 00:00:02]} 15. Qd1 {[%clk 00:05:35]} {[%emt 00:00:36]} Nxf3+ {[%clk
00:10:50]} {[%emt 00:00:06]} 16. Qxf3 {[%clk 00:05:29]} {[%emt 00:00:11]} O-O
{[%clk 00:10:48]} {[%emt 00:00:06]} 17. Rac1 {[%clk 00:04:51]} {[%emt
00:00:44]} f5 {[%clk 00:10:45]} {[%emt 00:00:09]} 18. Qe2 {[%clk 00:04:14]}
{[%emt 00:00:42]} b5 {[%clk 00:09:38]} {[%emt 00:01:11]} 19. f4 {[%clk
00:03:08]} {[%emt 00:01:11]} Bf6 {[%clk 00:08:30]} {[%emt 00:01:13]} 20. fxe5
{[%clk 00:02:47]} {[%emt 00:00:26]} Bxe5 {[%clk 00:08:31]} {[%emt 00:00:04]} 21.
Qf2 {[%clk 00:02:09]} {[%emt 00:00:42]} Rc8 {[%clk 00:07:24]} {[%emt 00:01:13]}
22. Bb6 {[%clk 00:02:04]} {[%emt 00:00:10]} Qf6 {[%clk 00:07:18]} {[%emt
00:00:11]} 23. b3 {[%clk 00:01:58]} {[%emt 00:00:11]} Qh6 {[%clk 00:06:26]}
{[%emt 00:00:57]} 24. Rxc8 {[%clk 00:01:50]} {[%emt 00:00:13]} 0-1

[Event "Rapid Tournament (RAP)"]
[Site "Biel, Switzerland"]
[Date "2026.07.12"]
[Round "5.32"]
[White "Duric, Ivan"]
[Black "Harish, Neeraj"]
[Result "0-1"]
[TimeControl "15 + 5"]
[WhiteTitle "-"]
[BlackTitle "-"]
[WhiteFideId "1358138"]
[BlackFideId "30958130"]
[WhiteElo "1832"]
[BlackElo "2140"]

1. d4 {[%clk 00:15:08]} {[%emt 00:00:02]} Nf6 {[%clk 00:15:08]} {[%emt
00:00:02]} 2. c4 {[%clk 00:15:12]} {[%emt 00:00:04]} g6 {[%clk 00:15:12]} 3.
Nc3 {[%clk 00:15:15]} d5 {[%clk 00:15:16]} {[%emt 00:00:01]} 4. cxd5 {[%clk
00:15:16]} {[%emt 00:00:04]} Nxd5 {[%clk 00:15:19]} {[%emt 00:00:02]} 5. e4
{[%clk 00:15:15]} {[%emt 00:00:06]} Nxc3 {[%clk 00:15:23]} {[%emt 00:00:02]} 6.
bxc3 {[%clk 00:15:18]} {[%emt 00:00:01]} Bg7 {[%clk 00:15:26]} {[%emt
00:00:02]} 7. Nf3 {[%clk 00:15:16]} {[%emt 00:00:06]} c5 {[%clk 00:15:30]}
{[%emt 00:00:02]} 8. Bf4 {[%clk 00:13:52]} {[%emt 00:01:29]} O-O {[%clk
00:15:20]} {[%emt 00:00:15]} 9. Rc1 {[%clk 00:13:20]} {[%emt 00:00:36]} Qa5
{[%clk 00:15:17]} {[%emt 00:00:09]} 10. Qd2 {[%clk 00:13:18]} {[%emt 00:00:07]}
Rd8 {[%clk 00:13:38]} {[%emt 00:01:45]} 11. Be2 {[%clk 00:11:57]} {[%emt
00:01:25]} Bg4 {[%clk 00:13:17]} {[%emt 00:00:25]} 12. O-O {[%clk 00:09:51]}
{[%emt 00:02:12]} Nc6 {[%clk 00:12:16]} {[%emt 00:01:06]} 13. Qb2 {[%clk
00:06:25]} {[%emt 00:03:31]} Rd7 {[%clk 00:09:51]} {[%emt 00:02:30]} 14. d5
{[%clk 00:06:20]} {[%emt 00:00:10]} Nd8 {[%clk 00:08:10]} {[%emt 00:01:47]} 15.
Ne5 {[%clk 00:06:10]} {[%emt 00:00:14]} Bxe2 {[%clk 00:07:51]} {[%emt
00:00:24]} 16. Qxe2 {[%clk 00:06:12]} {[%emt 00:00:03]} Bxe5 {[%clk 00:07:41]}
{[%emt 00:00:15]} 17. Bxe5 {[%clk 00:06:15]} {[%emt 00:00:02]} f6 {[%clk
00:07:15]} {[%emt 00:00:31]} 18. Qg4 {[%clk 00:05:29]} {[%emt 00:00:50]} Qa4
{[%clk 00:07:01]} {[%emt 00:00:20]} 19. Bg3 {[%clk 00:04:45]} {[%emt 00:00:49]}
Rxd5 {[%clk 00:06:40]} {[%emt 00:00:27]} 20. f4 {[%clk 00:04:20]} {[%emt
00:00:29]} Qxe4 {[%clk 00:05:51]} {[%emt 00:00:54]} 21. Rce1 {[%clk 00:03:57]}
{[%emt 00:00:28]} Qf5 {[%clk 00:05:05]} {[%emt 00:00:51]} 22. Qf3 {[%clk
00:03:37]} {[%emt 00:00:25]} Rd7 {[%clk 00:04:54]} {[%emt 00:00:16]} 23. Qe2
{[%clk 00:01:19]} {[%emt 00:02:23]} Nf7 {[%clk 00:04:44]} {[%emt 00:00:15]} 24.
Qc4 {[%clk 00:00:57]} {[%emt 00:00:27]} Rad8 {[%clk 00:04:26]} {[%emt
00:00:22]} 25. Bf2 {[%clk 00:00:51]} {[%emt 00:00:11]} b6 {[%clk 00:04:18]}
{[%emt 00:00:14]} 26. a4 {[%clk 00:00:47]} {[%emt 00:00:09]} Kf8 {[%clk
00:04:04]} {[%emt 00:00:19]} 27. a5 {[%clk 00:00:34]} {[%emt 00:00:18]} Qd3
{[%clk 00:03:42]} {[%emt 00:00:27]} 28. Qb3 {[%clk 00:00:22]} {[%emt 00:00:17]}
Qd5 {[%clk 00:03:35]} {[%emt 00:00:12]} 29. c4 {[%clk 00:00:25]} {[%emt
00:00:02]} Qd3 {[%clk 00:03:34]} {[%emt 00:00:07]} 30. Qb5 {[%clk 00:00:11]}
{[%emt 00:00:19]} Nd6 {[%clk 00:03:37]} {[%emt 00:00:01]} 31. Qb1 {[%clk
00:00:10]} {[%emt 00:00:07]} Qxb1 {[%clk 00:03:38]} {[%emt 00:00:03]} 32. Rxb1
{[%clk 00:00:14]} {[%emt 00:00:01]} Nxc4 {[%clk 00:03:39]} {[%emt 00:00:04]} 33.
axb6 {[%clk 00:00:17]} {[%emt 00:00:02]} axb6 {[%clk 00:03:42]} {[%emt
00:00:01]} 34. Rfc1 {[%clk 00:00:20]} {[%emt 00:00:02]} Nb2 {[%clk 00:03:06]}
{[%emt 00:00:42]} 35. Rxb2 {[%clk 00:00:19]} {[%emt 00:00:06]} Rd1+ {[%clk
00:03:10]} {[%emt 00:00:02]} 36. Rxd1 {[%clk 00:00:22]} {[%emt 00:00:01]} Rxd1+
{[%clk 00:03:13]} 37. Be1 {[%clk 00:00:26]} {[%emt 00:00:01]} Rxe1+ {[%clk
00:03:17]} {[%emt 00:00:02]} 38. Kf2 {[%clk 00:00:29]} {[%emt 00:00:01]} Re6
{[%clk 00:03:21]} {[%emt 00:00:02]} 39. g3 {[%clk 00:00:25]} {[%emt 00:00:09]}
Ke8 {[%clk 00:03:22]} {[%emt 00:00:03]} 40. Rb5 {[%clk 00:00:14]} {[%emt
00:00:17]} Kd7 {[%clk 00:03:26]} {[%emt 00:00:01]} 41. g4 {[%clk 00:00:17]}
{[%emt 00:00:02]} Kc6 {[%clk 00:03:30]} 42. Rb3 {[%clk 00:00:18]} {[%emt
00:00:04]} c4 {[%clk 00:03:34]} {[%emt 00:00:01]} 43. Re3 {[%clk 00:00:19]}
{[%emt 00:00:04]} Rxe3 {[%clk 00:03:35]} {[%emt 00:00:04]} 44. Kxe3 {[%clk
00:00:22]} {[%emt 00:00:02]} b5 {[%clk 00:03:39]} 45. Kd4 {[%clk 00:00:22]}
{[%emt 00:00:06]} Kd6 {[%clk 00:03:43]} 46. h4 {[%clk 00:00:19]} {[%emt
00:00:08]} e5+ {[%clk 00:03:47]} 47. fxe5+ {[%clk 00:00:22]} {[%emt 00:00:01]}
fxe5+ {[%clk 00:03:51]} 48. Kc3 {[%clk 00:00:25]} {[%emt 00:00:03]} e4 {[%clk
00:03:55]} 49. h5 {[%clk 00:00:25]} {[%emt 00:00:04]} gxh5 {[%clk 00:03:59]}
{[%emt 00:00:01]} 50. gxh5 {[%clk 00:00:28]} {[%emt 00:00:03]} e3 {[%clk
00:04:03]} 51. h6 {[%clk 00:00:29]} {[%emt 00:00:03]} b4+ {[%clk 00:04:06]}
{[%emt 00:00:03]} 52. Kc2 {[%clk 00:00:26]} {[%emt 00:00:08]} b3+ {[%clk
00:04:08]} {[%emt 00:00:03]} 0-1

[Event "Rapid Tournament (RAP)"]
[Site "Biel, Switzerland"]
[Date "2026.07.12"]
[Round "5.33"]
[White "El-Mais, Ibaa"]
[Black "Gaier, Walter"]
[Result "1-0"]
[TimeControl "15 + 5"]
[WhiteTitle "-"]
[BlackTitle "-"]
[WhiteFideId "1312715"]
[BlackFideId "1310186"]
[WhiteElo "2100"]
[BlackElo "1832"]

1. d4 {[%clk 00:15:07]} {[%emt 00:00:03]} d5 {[%clk 00:15:08]} {[%emt
00:00:05]} 2. c4 {[%clk 00:15:11]} e5 {[%clk 00:15:09]} {[%emt 00:00:04]} 3.
dxe5 {[%emt 00:00:04]} d4 {[%clk 00:15:11]} {[%emt 00:00:01]} 4. Nf3 {[%clk
00:15:18]} {[%emt 00:00:01]} c5 {[%clk 00:15:14]} {[%emt 00:00:01]} 5. g3
{[%clk 00:15:14]} {[%emt 00:00:09]} Nc6 {[%clk 00:15:16]} {[%emt 00:00:04]} 6.
Bg2 {[%clk 00:15:18]} {[%emt 00:00:01]} Nge7 {[%clk 00:14:35]} {[%emt
00:00:45]} 7. O-O {[%clk 00:14:42]} {[%emt 00:00:41]} Ng6 {[%clk 00:12:56]}
{[%emt 00:01:45]} 8. e3 {[%clk 00:14:31]} {[%emt 00:00:16]} Be6 {[%clk
00:12:18]} {[%emt 00:00:43]} 9. b3 {[%clk 00:14:26]} {[%emt 00:00:10]} d3
{[%clk 00:09:37]} {[%emt 00:02:46]} 10. Bb2 {[%clk 00:14:23]} {[%emt 00:00:08]}
Be7 {[%clk 00:08:15]} {[%emt 00:01:26]} 11. h3 {[%clk 00:13:29]} {[%emt
00:00:59]} Qd7 {[%clk 00:07:51]} {[%emt 00:00:30]} 12. Kh2 {[%clk 00:13:32]}
Rd8 {[%clk 00:07:26]} {[%emt 00:00:30]} 13. Nbd2 {[%clk 00:13:27]} {[%emt
00:00:11]} h5 {[%clk 00:05:45]} {[%emt 00:01:45]} 14. h4 {[%clk 00:12:14]}
{[%emt 00:01:18]} Bg4 {[%clk 00:05:33]} {[%emt 00:00:17]} 15. Qc1 {[%clk
00:12:01]} {[%emt 00:00:19]} Nb4 {[%clk 00:04:39]} {[%emt 00:00:59]} 16. e6
{[%clk 00:11:09]} {[%emt 00:00:57]} Qxe6 {[%clk 00:04:03]} {[%emt 00:00:40]} 17.
Bxg7 {[%clk 00:11:10]} {[%emt 00:00:04]} Rg8 {[%clk 00:03:50]} {[%emt
00:00:18]} 18. Bc3 {[%clk 00:11:00]} {[%emt 00:00:15]} Nc2 {[%clk 00:03:30]}
{[%emt 00:00:25]} 19. Rb1 {[%clk 00:10:53]} {[%emt 00:00:13]} Qd7 {[%clk
00:02:06]} {[%emt 00:01:29]} 20. Ne4 {[%clk 00:09:42]} {[%emt 00:01:16]} Qc7
{[%emt 00:00:48]} 21. Nf6+ {[%clk 00:09:20]} Bxf6 {[%clk 00:01:27]} {[%emt
00:00:28]} 22. Bxf6 {[%clk 00:09:22]} {[%emt 00:00:02]} Rd6 {[%clk 00:01:15]}
{[%emt 00:00:18]} 23. Bg5 {[%clk 00:08:21]} {[%emt 00:01:06]} Qd7 {[%clk
00:00:25]} {[%emt 00:00:54]} 24. Qb2 {[%clk 00:07:05]} {[%emt 00:01:21]} Qf5
{[%clk 00:00:11]} {[%emt 00:00:19]} 25. Nd2 {[%clk 00:06:54]} {[%emt 00:00:16]}
Be2 {[%clk 00:00:13]} {[%emt 00:00:03]} 26. Ne4 {[%clk 00:06:35]} {[%emt
00:00:24]} Re6 {[%clk 00:00:00]} {[%emt 00:00:14]} 27. Nf6+ {[%emt 00:00:09]}
Rxf6 {[%emt 00:00:02]} 28. Qxf6 {[%emt 00:00:02]} 1-0

[Event "Rapid Tournament (RAP)"]
[Site "Biel, Switzerland"]
[Date "2026.07.12"]
[Round "5.34"]
[White "Di Meo, Quentin"]
[Black "Piazza, Carlo"]
[Result "1-0"]
[TimeControl "15 + 5"]
[WhiteTitle "-"]
[BlackTitle "-"]
[WhiteFideId "1338498"]
[BlackFideId "809683"]
[WhiteElo "1828"]
[BlackElo "2076"]

1. Nf3 {[%clk 00:15:07]} {[%emt 00:00:03]} c5 {[%clk 00:15:08]} {[%emt
00:00:05]} 2. b3 {[%clk 00:15:08]} Nc6 {[%clk 00:15:10]} {[%emt 00:00:04]} 3.
Bb2 {[%clk 00:15:07]} {[%emt 00:00:05]} d5 {[%clk 00:15:12]} {[%emt 00:00:03]}
4. e3 {[%clk 00:15:04]} {[%emt 00:00:08]} f6 {[%clk 00:15:15]} {[%emt
00:00:03]} 5. d4 {[%clk 00:14:23]} {[%emt 00:00:46]} e6 {[%clk 00:15:17]}
{[%emt 00:00:03]} 6. Be2 {[%clk 00:14:10]} {[%emt 00:00:17]} Bd6 {[%clk
00:15:19]} {[%emt 00:00:04]} 7. O-O {[%clk 00:13:59]} {[%emt 00:00:16]} Nge7
{[%clk 00:15:22]} {[%emt 00:00:02]} 8. Nbd2 {[%clk 00:13:51]} {[%emt 00:00:12]}
O-O {[%clk 00:15:00]} {[%emt 00:00:28]} 9. c4 {[%clk 00:13:42]} {[%emt
00:00:14]} b6 {[%clk 00:14:53]} {[%emt 00:00:12]} 10. Rc1 {[%clk 00:13:29]}
{[%emt 00:00:18]} Bb7 {[%clk 00:14:52]} {[%emt 00:00:06]} 11. a3 {[%clk
00:13:02]} {[%emt 00:00:31]} Qd7 {[%clk 00:14:53]} {[%emt 00:00:04]} 12. Qc2
{[%clk 00:12:53]} {[%emt 00:00:14]} Rac8 {[%clk 00:14:55]} {[%emt 00:00:04]} 13.
Bd3 {[%clk 00:12:31]} {[%emt 00:00:26]} g6 {[%clk 00:14:15]} {[%emt 00:00:46]}
14. Rfe1 {[%clk 00:12:09]} {[%emt 00:00:27]} Na5 {[%clk 00:12:42]} {[%emt
00:01:38]} 15. e4 {[%clk 00:11:00]} {[%emt 00:01:13]} cxd4 {[%clk 00:12:20]}
{[%emt 00:00:27]} 16. exd5 {[%clk 00:10:02]} {[%emt 00:01:03]} e5 {[%clk
00:09:39]} {[%emt 00:02:47]} 17. Qb1 {[%clk 00:09:31]} {[%emt 00:00:36]} b5
{[%clk 00:08:13]} {[%emt 00:01:32]} 18. Ne4 {[%clk 00:07:27]} {[%emt 00:02:07]}
Nxb3 {[%clk 00:07:24]} {[%emt 00:00:54]} 19. Rc2 {[%clk 00:05:36]} {[%emt
00:01:56]} bxc4 {[%clk 00:07:15]} {[%emt 00:00:15]} 20. Rxc4 {[%clk 00:04:58]}
{[%emt 00:00:43]} Bxd5 {[%clk 00:06:47]} {[%emt 00:00:33]} 21. Rxc8 {[%clk
00:04:51]} {[%emt 00:00:12]} Rxc8 {[%clk 00:06:35]} {[%emt 00:00:02]} 1-0

[Event "Rapid Tournament (RAP)"]
[Site "Biel, Switzerland"]
[Date "2026.07.12"]
[Round "5.35"]
[White "De Gregorio, Alexis"]
[Black "Fortier, Nicolas"]
[Result "1-0"]
[TimeControl "15 + 5"]
[WhiteTitle "-"]
[BlackTitle "-"]
[WhiteFideId "1310054"]
[BlackFideId "1308750"]
[WhiteElo "2030"]
[BlackElo "1810"]

1. d4 {[%clk 00:15:05]} {[%emt 00:00:04]} d5 {[%clk 00:15:08]} {[%emt
00:00:04]} 2. c4 {[%clk 00:15:09]} c6 {[%clk 00:15:11]} {[%emt 00:00:01]} 3.
Nf3 {[%clk 00:15:12]} {[%emt 00:00:02]} Nf6 {[%clk 00:15:14]} {[%emt 00:00:03]}
4. Nc3 {[%clk 00:15:13]} {[%emt 00:00:04]} dxc4 {[%clk 00:15:14]} {[%emt
00:00:05]} 5. a4 {[%clk 00:15:10]} {[%emt 00:00:08]} Bf5 {[%clk 00:15:16]}
{[%emt 00:00:03]} 6. e3 {[%clk 00:14:55]} {[%emt 00:00:21]} e6 {[%clk
00:15:17]} {[%emt 00:00:04]} 7. Bxc4 {[%clk 00:14:56]} {[%emt 00:00:03]} Bb4
{[%clk 00:15:17]} {[%emt 00:00:05]} 8. O-O {[%clk 00:14:47]} {[%emt 00:00:14]}
O-O {[%clk 00:15:17]} {[%emt 00:00:05]} 9. Ne5 {[%clk 00:13:03]} {[%emt
00:01:50]} Nbd7 {[%clk 00:14:47]} {[%emt 00:00:34]} 10. Bd3 {[%clk 00:11:49]}
{[%emt 00:01:19]} Bxd3 {[%clk 00:14:22]} {[%emt 00:00:30]} 11. Nxd3 {[%clk
00:11:52]} {[%emt 00:00:02]} Be7 {[%clk 00:13:38]} {[%emt 00:00:50]} 12. f3
{[%clk 00:11:40]} {[%emt 00:00:16]} c5 {[%clk 00:13:31]} {[%emt 00:00:12]} 13.
Ne2 {[%clk 00:09:16]} {[%emt 00:02:29]} cxd4 {[%clk 00:12:16]} {[%emt
00:01:21]} 14. Nxd4 {[%clk 00:09:06]} {[%emt 00:00:14]} Qb6 {[%clk 00:11:47]}
{[%emt 00:00:34]} 15. Qb3 {[%clk 00:08:56]} {[%emt 00:00:15]} Rfd8 {[%clk
00:11:31]} {[%emt 00:00:20]} 16. Rd1 {[%clk 00:07:51]} {[%emt 00:01:10]} Nd5
{[%clk 00:10:25]} {[%emt 00:01:13]} 17. Qxb6 {[%clk 00:07:21]} {[%emt
00:00:35]} N7xb6 {[%clk 00:10:12]} {[%emt 00:00:18]} 18. e4 {[%clk 00:07:03]}
{[%emt 00:00:22]} Nb4 {[%clk 00:09:59]} {[%emt 00:00:17]} 19. Nxb4 {[%clk
00:06:57]} {[%emt 00:00:12]} Bxb4 {[%clk 00:10:02]} {[%emt 00:00:03]} 20. Be3
{[%clk 00:06:39]} {[%emt 00:00:22]} Nc4 {[%clk 00:09:45]} {[%emt 00:00:22]} 21.
Bf2 {[%clk 00:05:58]} {[%emt 00:00:46]} Ba5 {[%clk 00:06:39]} {[%emt 00:03:11]}
22. b3 {[%clk 00:04:43]} {[%emt 00:01:19]} Ne5 {[%clk 00:06:18]} {[%emt
00:00:26]} 23. Rac1 {[%clk 00:04:22]} {[%emt 00:00:27]} Rac8 {[%clk 00:06:08]}
{[%emt 00:00:15]} 24. Nb5 {[%clk 00:03:51]} {[%emt 00:00:35]} Rxc1 {[%clk
00:06:02]} {[%emt 00:00:11]} 25. Rxc1 {[%clk 00:03:54]} {[%emt 00:00:02]} a6
{[%clk 00:05:06]} {[%emt 00:01:01]} 26. Na3 {[%clk 00:03:43]} {[%emt 00:00:16]}
Kf8 {[%clk 00:04:17]} {[%emt 00:00:54]} 27. Be3 {[%clk 00:02:44]} {[%emt
00:01:04]} Rd3 {[%clk 00:03:40]} {[%emt 00:00:43]} 28. Rc8+ {[%clk 00:02:14]}
{[%emt 00:00:35]} Ke7 {[%clk 00:03:37]} {[%emt 00:00:07]} 29. Bf4 {[%clk
00:01:49]} {[%emt 00:00:30]} Ng6 {[%clk 00:02:03]} {[%emt 00:01:40]} 30. Nc4
{[%clk 00:01:01]} {[%emt 00:00:53]} Nxf4 {[%clk 00:01:18]} {[%emt 00:00:50]} 31.
Nxa5 {[%clk 00:01:04]} {[%emt 00:00:01]} b6 {[%clk 00:01:07]} {[%emt 00:00:16]}
32. Rc7+ {[%clk 00:00:36]} {[%emt 00:00:34]} Kf6 {[%clk 00:01:06]} {[%emt
00:00:06]} 33. e5+ {[%clk 00:00:17]} {[%emt 00:00:24]} Kg6 {[%clk 00:00:58]}
{[%emt 00:00:12]} 34. Nc4 {[%clk 00:00:17]} {[%emt 00:00:05]} Rxb3 {[%clk
00:00:44]} {[%emt 00:00:19]} 35. g3 {[%clk 00:00:20]} {[%emt 00:00:03]} Nd5
{[%clk 00:00:44]} {[%emt 00:00:05]} 36. Rc6 {[%clk 00:00:21]} {[%emt 00:00:04]}
b5 {[%clk 00:00:44]} {[%emt 00:00:05]} 37. axb5 {[%clk 00:00:24]} {[%emt
00:00:03]} axb5 {[%clk 00:00:46]} {[%emt 00:00:02]} 38. Nd6 {[%clk 00:00:25]}
{[%emt 00:00:03]} Rxf3 {[%clk 00:00:44]} {[%emt 00:00:07]} 39. Kg2 {[%clk
00:00:22]} {[%emt 00:00:09]} Re3 {[%clk 00:00:41]} {[%emt 00:00:08]} 40. Nxb5
{[%clk 00:00:15]} {[%emt 00:00:11]} Rxe5 {[%clk 00:00:41]} {[%emt 00:00:05]} 41.
Nd4 {[%clk 00:00:16]} {[%emt 00:00:05]} Nf6 {[%clk 00:00:36]} {[%emt 00:00:10]}
42. Kf3 {[%clk 00:00:15]} {[%emt 00:00:06]} Nd5 {[%clk 00:00:36]} {[%emt
00:00:05]} 43. Rc8 {[%clk 00:00:16]} {[%emt 00:00:04]} Re3+ {[%clk 00:00:37]}
{[%emt 00:00:04]} 44. Kf2 {[%clk 00:00:19]} {[%emt 00:00:02]} Rd3 {[%clk
00:00:38]} {[%emt 00:00:04]} 45. Nf3 {[%clk 00:00:21]} {[%emt 00:00:02]} Ra3
{[%clk 00:00:33]} {[%emt 00:00:10]} 46. Rc2 {[%clk 00:00:21]} {[%emt 00:00:05]}
f6 {[%clk 00:00:33]} {[%emt 00:00:06]} 47. Nd4 {[%clk 00:00:24]} {[%emt
00:00:02]} e5 {[%clk 00:00:32]} {[%emt 00:00:06]} 48. Ne6 {[%clk 00:00:23]}
{[%emt 00:00:05]} Nb4 {[%clk 00:00:27]} {[%emt 00:00:11]} 49. Rc7 {[%clk
00:00:25]} {[%emt 00:00:03]} Nd3+ {[%clk 00:00:24]} {[%emt 00:00:08]} 50. Ke2
{[%clk 00:00:25]} {[%emt 00:00:05]} e4 {[%clk 00:00:22]} {[%emt 00:00:07]} 51.
Rxg7+ {[%clk 00:00:26]} {[%emt 00:00:04]} Kh6 {[%clk 00:00:20]} {[%emt
00:00:06]} 52. Rf7 {[%clk 00:00:27]} {[%emt 00:00:04]} Ra2+ {[%clk 00:00:16]}
{[%emt 00:00:09]} 53. Ke3 {[%clk 00:00:29]} {[%emt 00:00:03]} Kg6 {[%clk
00:00:12]} {[%emt 00:00:09]} 54. Rg7+ {[%clk 00:00:33]} {[%emt 00:00:01]} Kf5
{[%clk 00:00:09]} {[%emt 00:00:09]} 55. Nd4+ {[%clk 00:00:37]} Ke5 {[%clk
00:00:08]} {[%emt 00:00:05]} 56. Re7+ {[%clk 00:00:37]} {[%emt 00:00:05]} Kd5
{[%clk 00:00:00]} {[%emt 00:00:09]} 1-0